Cogmind - Beta 17.1 @@@ ROGUE MODE // 2026.09.17 @ 23:00:03 Player: SunShine214 Result: Destroyed by Y-45 Defender with Heavy Assault Rifle Performance ------------- Evolutions (1) 500 Regions Visited (2) 400 Robots Destroyed (58) 290 Value Destroyed (1130) 1130 Prototype IDs (0) 0 Alien Tech Used (0) 0 Bonus (0) 0 TOTAL SCORE: 2320 Bonus ------- None Cogmind --------- Core Integrity 0/400 Matter 161/300 Energy 99/100 System Corruption 0% Temperature Cool (9) Movement Core (500) Ox9 Location -9/Materials Parts ------- > --- POWER (1) -------- (None) > --- PROPULSION (2) --- (None) > --- UTILITY (4) ------ Improved Heat Sink Large Storage Unit Utility Shielding > --- WEAPON (2) ------- Particle Gun Heavy Assault Rifle > --- INVENTORY (15) --- Ion Engine Ion Engine Improved Heat Sink High-capacity Storage Unit Improved Signal Interpreter Core Shielding Core Shielding Power Shielding Utility Shielding Light Armor Plating Light Armor Plating Mining Laser Peak State ------------ > --- POWER ------------ Light Nuclear Core > --- PROPULSION ------- Light Treads Armored Wheel > --- UTILITY ---------- Improved Heat Sink Large Storage Unit Utility Shielding Hacking Suite > --- WEAPON ----------- Heavy EM Pulse Gun Particle Gun > --- INVENTORY -------- Ion Engine VTOL Module Improved Heat Sink High-capacity Storage Unit Improved Signal Interpreter Core Shielding Core Shielding Power Shielding Utility Shielding Light Armor Plating Grenade Launcher Mining Laser [Rating: 19] Favorites ----------- Power Ion Engine Engine Ion Engine Power Core Light Nuclear Core Propulsion Light Treads Treads Light Treads Wheel Armored Wheel Flight Unit VTOL Module Utility Large Storage Unit Device Seismic Detector Storage Large Storage Unit Processor Transport Network Coupler Hackware Hacking Suite Protection Utility Shielding Weapon Assault Rifle Energy Gun Particle Gun Energy Cannon Beam Cannon Ballistic Gun Assault Rifle Launcher Grenade Launcher Build | -11 -10 -9 ------- Run | Yrd Mat Mat Slots Evolved 2 | . . 2 Power . | . . . Propulsion . | . . . Utility 2 | . . 2 Weapon . | . . . Parts Attached 30 | 8 11 11 Power 3 | 1 2 . Engine 2 | 1 1 . Core 1 | . 1 . Reactor . | . . . Propulsion 7 | 2 1 4 Treads 5 | 2 1 2 Leg . | . . . Wheel 1 | . . 1 Hover . | . . . Flight 1 | . . 1 Utility 10 | 3 4 3 Device 3 | 2 . 1 Storage 2 | 1 1 . Processor 2 | . 2 . Hackware 1 | . 1 . Protection 2 | . . 2 Artifact . | . . . Weapon 10 | 2 4 4 Energy Gun 4 | 1 1 2 Energy Cannon 1 | . 1 . Ballistic Gun 4 | 1 1 2 Ballistic Cannon . | . . . Launcher 1 | . 1 . Special Weapon . | . . . Impact Weapon . | . . . Slashing Weapon . | . . . Piercing Weapon . | . . . Special Melee Weapon . | . . . Unidentified Prototypes . | . . . Corrupted Parts 1 | . 1 . System Corruption 1 | . 1 . Parts Lost 18 | . 7 11 Power 2 | . 1 1 Propulsion 7 | . 2 5 Utility 2 | . 1 1 Weapon 7 | . 3 4 Highest Loss Streak 10 | . 2 10 To Critical Strikes . | . . . Average Backups 6 | . 6 11 Power . | . . 1 Propulsion . | . . . Utility 4 | . 4 7 Weapon 1 | . 1 1 Tool/Special . | . . . Unused Backups 11 | 1 . 10 Power 1 | . . 1 Propulsion . | . . . Utility 8 | . . 8 Weapon 2 | 1 . 1 Tool/Special . | . . . Average Slot Usage (%) 86 | . 87 83 Engine 5 | . 7 . Core 5 | . 4 8 Treads 20 | . 24 11 Wheel 1 | . . 7 Device 3 | . 3 4 Storage 13 | . 14 11 Hackware 6 | . 5 8 Protection 3 | . . 13 Energy Gun 9 | . 8 12 Ballistic Gun 11 | . 13 4 Launcher 3 | . 3 1 Peak Build Rating 19 | 7 13 19 Average Rating 9 | 5 8 14 On Entrance 6 | . 7 12 Avg Prop Armor Cover (%) 10 | . . 10 Naked Turns . | . . . Heaviest Build 35 | 15 30 35 Greatest Support 40 | 40 40 40 Greatest Overweight (x) 8 | . 1 8 Average Overweight (x) . | . . 1 Largest Inventory Capacity 15 | 8 15 15 Average Capacity 13 | 7 14 15 Most Carried 13 | 2 10 13 Average Carried 6 | . 6 10 Final Capacity 15 | 8 15 15 Final Carried 12 | 1 10 12 Class Distribution -------------------- 63% | Mutant 36% | Scavenger-Mutant Dominant Class ---------------- Mutant | -10/Materials Scavenger-Mutant | -9/Materials Resources | -11 -10 -9 ----------- Run | Yrd Mat Mat Matter Collected 810 | 313 364 133 Remotely . | . . . Salvage Created 1478 | 204 824 450 Parts 101 | 16 56 29 Haulers Intercepted 2 | . 2 . Recyclers Shooed 2 | . 2 . Parts Field Recycled . | . . . Retrieved Matter . | . . . Parts Self-Destructed . | . . . Prevented . | . . . Parts Restored . | . . . Kills | -11 -10 -9 ------- Run | Yrd Mat Mat Combat Hostiles Destroyed 34 | . 19 15 Guns 23 | . 14 9 AOE 11 | . 5 6 Classes Destroyed 12 | 3 6 3 Worker 4 | 1 2 1 Builder 5 | . 5 . Tunneler 4 | 4 . . Hauler 2 | . 2 . Recycler 2 | 1 1 . Mechanic 1 | . . 1 Operator 3 | . 3 . Watcher 3 | . 2 1 Swarmer 13 | . 9 4 Grunt 18 | . 10 8 Duelist 1 | . . 1 Sentry 2 | . . 2 Best Kill Streak 11 | 2 8 11 Combat Bots Only 9 | . 4 9 Max Kills in Single Turn 3 | 1 3 3 Gunslinging . | . . . Exploded 3 | . 1 3 Melee . | . . . Uniques/NPCs Destroyed . | . . . Combat | -11 -10 -9 -------- Run | Yrd Mat Mat Hostile Shots Fired 247 | . 112 135 Missed 77 | . 29 48 Hits 170 | . 83 87 Melee 3 | . . 3 Projectile 167 | . 83 84 Critical Strikes 1 | . . 1 Damage Taken 2218 | . 968 1250 Core 623 | . 221 402 Absorbed by Shields . | . . . Redirected to Shielding 17 | . . 17 Core Remaining (%) 55 | 100 11 . Volleys Fired 151 | 11 93 47 Largest 2 | 2 2 2 Hottest 110 | 60 85 110 Shots Fired 248 | 22 167 59 Gun 216 | 22 143 51 Cannon 11 | . 11 . Launcher 21 | . 13 8 Special . | . . . Kinetic 111 | 11 86 14 Thermal 67 | . 38 29 Explosive 21 | . 13 8 Electromagnetic 49 | 11 30 8 Robot Hit Streak 9 | 4 9 6 Robot Miss Streak 6 | 5 6 3 Penetration Max . | . . . Secondary Targets 2 | . 1 1 Max Gunslinging Chain 1 | . 1 1 Shots Hit Robots 145 | 10 100 35 Core Hits 81 | 6 51 24 Critical Kills . | . . . Critical Parts Destroyed . | . . . Critical Strikes . | . . . Melee Attacks . | . . . Impact . | . . . Slashing . | . . . Piercing . | . . . Sneak Attacks . | . . . Combat Hostiles . | . . . Follow-up Attacks . | . . . Damage Inflicted 3287 | 149 1829 1309 Guns 1783 | 128 1098 557 Cannons 121 | . 121 . Explosions 1376 | 21 603 752 Melee . | . . . Ramming 7 | . 7 . Kinetic 811 | 59 620 132 Thermal 726 | 21 323 382 Explosive 1313 | . 603 710 Electromagnetic 430 | 69 276 85 Impact . | . . . Slashing . | . . . Piercing . | . . . Highest Corruption 1 | . 1 . Average Corruption 1 | . 1 . Corruption Purged . | . . . Corruption Blocked . | . . . Effects 1 | . 1 . Parts Rejected 1 | . 1 . Overload Shots . | . . . Overflow Damage 78 | . 33 45 Projectiles . | . . . Explosions 78 | . 33 45 Melee . | . . . Knockbacks . | . . . Impact . | . . . Kinetic . | . . . Secondary . | . . . Self-Inflicted Damage 92 | . 60 32 Shots 4 | . 3 1 Rammed 1 | . 1 . Targets Rammed 2 | . 2 . Kicked . | . . . Crushed 1 | . 1 . Highest Temperature 408 | . 373 408 Average Temperature 113 | . 95 195 Received Heat Transfer 765 | . 348 417 Effects 2 | . 1 1 Shutdowns 1 | . . 1 Energy Bleed 1 | . 1 . Siege Activations . | . . . Martial Activations . | . . . Shielding Activations . | . . . Robots Disrupted . | . . . Combat Hostiles . | . . . Robots Corrupted . | . . . Combat Hostiles . | . . . Parts Fried 1 | . 1 . Impact Corruptions . | . . . Robots Melted . | . . . Combat Hostiles . | . . . Parts Melted 3 | . 2 1 Heat Transferred 1617 | 50 740 827 Parts Sabotaged . | . . . Parts Stolen . | . . . Parts Stripped . | . . . Power Chain Reactions 2 | 1 . 1 Alert | -11 -10 -9 ------- Run | Yrd Mat Mat Maximum Alert Level 1 | . 1 1 Low Security (%) 91 | 100 92 82 Level 1 8 | . 7 17 Level 2 . | . . . Level 3 . | . . . Level 4 . | . . . Level 5 . | . . . High Security . | . . . Max Security . | . . . Peak Influence 241 | 5 217 241 Initial 43 | . . 43 Average 62 | 2 69 65 Influence Increases 1147 | 30 680 437 Destroy 0b10 Robot/C 680 | . 380 300 Destroy 0b10 Robot/NC 120 | 30 75 15 Destroy Leader 150 | . 88 62 Successful Hack 15 | . 15 . Disable Machine 45 | . 45 . Destroy Structure 92 | . 47 45 Partial Spotted 15 | . . 15 Lose Combat Pursuer 30 | . 30 . Influence Decreases 921 | 30 576 315 Entered New Map 61 | . . 61 Time Decay 530 | 30 356 144 Lost Part 180 | . 70 110 Purge Threat 150 | . 150 . Squads Dispatched 6 | . 3 3 Investigation 1 | . . 1 Extermination . | . . . Reinforcement 5 | . 3 2 Assault . | . . . Garrison . | . . . Intercept . | . . . Searches Triggered . | . . . Construction Impeded . | . . . Haulers Reinforced . | . . . Active Scanning Responses . | . . . Cargo Convoy Interrupts . | . . . Stealth | -11 -10 -9 --------- Run | Yrd Mat Mat Distress Signals 7 | . 5 2 Communications Jammed . | . . . Distress Signals . | . . . Times Spotted 51 | . 28 23 Peak Tracking Total 8 | . 5 8 Tactical Retreats 2 | . 2 . Traps | -11 -10 -9 ------- Run | Yrd Mat Mat Traps Triggered 1 | . 1 . Indirectly . | . . . Trap Hack Attempts . | . . . Triggered . | . . . Disarmed . | . . . Reprogrammed . | . . . Reused . | . . . Traps Extracted . | . . . Installed . | . . . Triggered . | . . . Machines | -11 -10 -9 ---------- Run | Yrd Mat Mat Machines Disabled 3 | . 3 . Max in Single Turn 1 | . 1 . Machines Repaired . | . . . Machines Dismantled . | . . . Machines Sabotaged . | . . . Overloaded Fab Kills . | . . . Hacking | -11 -10 -9 --------- Run | Yrd Mat Mat Machines Accessed 9 | . 7 2 Terminals 5 | . 5 . Fabricators . | . . . Repair Stations . | . . . Recycling Units 3 | . 2 1 Scanalyzers 1 | . . 1 Garrison Access . | . . . Total Hacks 21 | . 16 5 Successful 9 | . 7 2 Failed 12 | . 9 3 Catastrophic 1 | . 1 . Database Lockouts . | . . . Manual . | . . . Terminals 12 | . 12 . Fabricators . | . . . Repair Stations . | . . . Recycling Units 7 | . 4 3 Scanalyzers 2 | . . 2 Garrison Access . | . . . Terminal Hacks 5 | . 5 . Level Access Points 1 | . 1 . Branch Access Points 1 | . 1 . Unreport Threat 1 | . 1 . Locate Traps 1 | . 1 . Zone Layout 1 | . 1 . Fabricator Hacks . | . . . Repair Station Hacks . | . . . Recycling Unit Hacks 2 | . 2 . Retrieve Components 2 | . 2 . Scanalyzer 2 | . . 2 Retrieve Study 2 | . . 2 Garrison Access Hacks . | . . . Unauthorized Hacks . | . . . Terminals . | . . . Fabricators . | . . . Repair Stations . | . . . Recycling Units . | . . . Scanalyzers . | . . . Garrison Access . | . . . Data Cores Recovered 1 | . 1 . Used . | . . . Hacking Detections 7 | . 5 2 Full Trace Events 2 | . 1 1 Feedback Events . | . . . Feedback Blocked . | . . . Robot Schematics Acquired . | . . . Robots Built . | . . . Authchips . | . . . Time . | . . . Total Robot Build Rating . | . . . Part Schematics Acquired . | . . . Parts Built . | . . . Authchips . | . . . Time . | . . . Total Part Build Rating . | . . . Part Studies Acquired 2 | . . 2 Parts Repaired . | . . . Time . | . . . Parts Recycled . | . . . Recycled Matter . | . . . Retrieved Matter . | . . . Retrieved Components 6 | . 6 . Parts Scanalyzed . | . . . Part Schematics Acquired . | . . . Parts Damaged . | . . . Bothacking | -11 -10 -9 ------------ Run | Yrd Mat Mat Used RIF Installer . | . . . Robots Hacked . | . . . Non-combat . | . . . Combat . | . . . Robot Hacks Applied . | . . . Relay Couplers Released . | . . . Fabnet Peak Effective % . | . . . Robots Rewired . | . . . Allies Hacked . | . . . Hacks Repelled . | . . . Allies | -11 -10 -9 -------- Run | Yrd Mat Mat Total Allies . | . . . Largest Group . | . . . Highest-Rated Group . | . . . Highest-Rated Ally . | . . . Total Orders . | . . . Ally Attacks . | . . . Total Damage . | . . . Kills . | . . . Allies Corrupted . | . . . Allies Melted . | . . . Intel | -11 -10 -9 ------- Run | Yrd Mat Mat Active Infowar (turns) 372 | 21 351 . Seismic 284 | 21 263 . T.N.C. 88 | . 88 . Robot Analysis Total . | . . . Derelict Logs Recovered . | . . . Drone Launches . | . . . Drone Recoveries . | . . . Exploration | -11 -10 -9 ------------- Run | Yrd Mat Mat Turns Passed 1562 | 160 1041 361 Spaces Moved 679 | 73 424 182 Core 6 | 4 . 2 Treads 519 | 69 424 26 Legs . | . . . Wheels 154 | . . 154 Hover . | . . . Flight . | . . . Fastest Speed 50 | 50 160 110 Average Speed 160 | 153 175 127 Slowest Speed 450 | 160 240 450 Overloaded Moves . | . . . Propulsion Burnouts . | . . . Robots Hopped . | . . . Potential Cave-ins . | . . . Cave-ins Triggered . | . . . Exploration Rate (%) 33 | 4 74 21 Regions Visited 2 Branch Regions . Pre-discovered Areas . | . . . Known Exits Taken 1 | . 1 . Unknown Exits Taken 1 | 1 . . Scrap Searched . | . . . Spaces Dug . | . . . Terrain Destroyed 99 | 4 48 47 Melee . | . . . Projectile . | . . . AOE 99 | 4 48 47 Terrain Rammed . | . . . Walls Destroyed . | . . . Machines Disabled . | . . . Actions | -11 -10 -9 --------- Run | Yrd Mat Mat Total 897 | 96 553 248 Wait 9 | . 9 . Move 677 | 72 423 182 Hop . | . . . Pick Up 19 | 2 11 6 Fast Attach 21 | 8 6 7 Attach 7 | . 3 4 Detach 3 | 1 2 . Swap 5 | . 3 2 Drop 3 | 2 1 . Fire 151 | 11 93 47 Melee . | . . . Ram . | . . . Kick . | . . . Crush 2 | . 2 . Escape Stasis . | . . . Rewire . | . . . Trap . | . . . Miscellaneous . | . . . Route ------- -11/Scrapyard -10/Materials (discovered 5 exits: *Mat x3 / Min / [*Sub]) -9/Materials History --------- Turn | Location | Event 7 | -11/Scrapyard | Discovered new exit (range 16) 161 | -11/Scrapyard | Entered Materials 306 | -10/Materials | Build established: Mutant 416 | -10/Materials | Identified exit to Mines 416 | -10/Materials | Identified exit to Materials 604 | -10/Materials | Discovered new exit (range 7) 835 | -10/Materials | Core integrity fell below 50% 1061 | -10/Materials | Derelicts attacked the area 1110 | -10/Materials | Core integrity fell below 20% 1200 | -10/Materials | Build established: Scavenger-Mutant 1202 | -10/Materials | Entered another Materials area 1202 | -9/Materials | Evolved 2 slots: Utility x2 1493 | -9/Materials | Core integrity fell below 50% 1525 | -9/Materials | Destroyed 9 combat bots 1532 | -9/Materials | Core integrity fell below 20% 1563 | -9/Materials | Destroyed by Y-45 Defender with Heavy Assault Rifle Last Messages --------------- 01541_ U-05 Engineer lays Concrete. 01542_ K-01 Serf collects debris. 01542_ U-05 Engineer lays Concrete. 01543_ K-01 Serf collects debris. 01543_ U-05 Engineer builds a Wall. 01543_ U-05 Engineer lays Concrete. 01544_ U-05 Engineer builds a Wall. 01545_ G-34 Mercenary destroyed. 01546_ K-01 Serf collects debris. 01546_ Lgt. Treads+ destroyed. 01546_ A-02 Transporter destroyed. 01548_ K-01 Serf collects debris. 01548_ U-05 Engineer builds a Wall. 01549_ K-01 Serf collects debris. 01550_ U-05 Engineer lays Concrete. 01551_ Acquired Hvy. Assault Rifle. 01552_ K-01 Serf collects debris. 01552_ U-05 Engineer lays Concrete. 01553_ K-01 Serf destroyed. 01553_ U-05 Engineer lays Concrete. Map ----- +----------------------------------------------------+ | ???????????????# #???????????????????????????????? | | ???????????????# #?????????????????#?????????????? | | ???????????????# #??????? ???????? ??????????????? | | ???????????????# #?????" ??? ? ???????????????? | | ??????########## #????R #? #???????????????? | | ??????# # #???""" [ #? #???????????????? | | ??????# """# ###? #? #???????????????? | | ??????# """" "#### ## +???????????????? | | ??????# """" % =% #???????????????? | | ??????# " ! = #???????????????? | | ?###### """"! * #???????????????? | | ## + """###+### # #######????????????? | | # #### """## # "T" #????????????? | | # #??# ##% !! # Y## #????????????? | | # #??########### !! # # ?????????????? | | # #????????????# ## %!%# ?????????????? | | # ################+### !|%=# """ ?????????????? | | # =*!=# """ #????????????? | | + *a!!+ """ #????????????? | | # [[= # """ #????????????? | | ##### ##############[%u* #??"" ?????????????? | | #???# #?##########?##[[ ##???? ?????????????? | | #???# #?? ?#a #?????????????????????? | | #???# #?????? # #?????????????????????? | | #???# #?????????? + =!# #???????????????????? | | ##???# #?????? # @%! #???????????????????? | | ?????# #?? # %== #???????????????????? | | ?????# #?#############%= = #???????????????????? | | ?????# ########??????#%=%# ????????????????? | | ###### # #??????# % # "" #??????????????? | | # + "" #??????#%! # T" ???????????????? | | """ # # ""S #??????+[ + "" ???????????????? | | "Y" + # "" #??????# # ???????????????? | | # # !!#??????# # #??????????????? | | # #! ! #??????# #?######??????????????? | | # ###+########?? ?????????????????????? | | ###### ? ?????????????????????? | | # ? T ?????????????????????? | | ! # ? ????????????????????? | | ! + ############?? #????????????????????? | | ! # #?????????????##?###????????????????????? | | # #???????????????????????????????????????? | | # #???????????????????????????????????????? | | ##########???????????????????????????????????????? | | ?????????????????????????????????????????????????? | | ?????????????????????????????????????????????????? | | ?????????????????????????????????????????????????? | | ?????????????????????????????????????????????????? | | ?????????????????????????????????????????????????? | | ?????????????????????????????????????????????????? | +----------------------------------------------------+ Best States ------------- Heat Dissipation 42 Energy Generation 14 Energy Capacity 250 Matter Stores 300 Matter Capacity 300 Sight Range 16 Terrain Scan Density 10 Armor Coverage 150 Utility Shielding 33 Evasion (%) 40 Recoil Reduction 2 Offensive Hacking 10 Item Schematics ----------------- None Robot Schematics ------------------ None Fabricated ------------ Nothing Repaired ---------- Nothing Studied --------- Lgt. Treads | -9/Materials | Hacked Arm. Wheel | -9/Materials | Hacked Alien Tech Used ----------------- None Achievements -------------- None Challenges ------------ None Game ------ Seed DispersionPhysicsInverter Manual? 0 Play Time 00:13:36 Cumulative 258.0 hours Start 2026.09.17 @ 22:48:08 End 2026.09.17 @ 23:00:03 Sessions 1 Manual Loads 0 Difficulty Rogue Special Mode None Game No. 370 Rogue 370 Adventurer 0 Explorer 0 Win Type - Total 1 Types 1/0/0/0/0/0/0/0/0/0 Lore% 70 Gallery% 63 Achievement% 48 Wizard Run 0 Options --------- Layout 1 ASCII 0 Keyboard 1 Movement Arrows Keybinds 0 Fullscreen 1 Font 24/Smallcaps Map View 50x35 Zoom Use 0% Tactical HUD 1 Map Filters NONE Filters NONE Steam 1 RUN: 510193db-d5b8-4407-80bf-f108abf9494f